fUST/lending_fUST_20250814
["ID","MTS","AMOUNT","RATE_DAILY","PERIOD"]
[379151551,1755166233215,-55713.40041389,0.00017525,2]
[379151553,1755166233225,-1200.0,0.00017528,2]
[379151555,1755166233235,-460.0,0.00017528,2]
[379151557,1755166233244,-460.0,0.00017528,2]
[379151559,1755166233254,-637.55,0.00017529,2]
[379151561,1755166233264,-460.0,0.00017529,2]
[379151563,1755166233275,-460.0,0.00017529,2]
[379151565,1755166233284,-460.0,0.00017529,2]
[379151567,1755166233294,-5604.7,0.00017529,2]
[379151569,1755166233304,-2865.26,0.00017529,2]
[379151571,1755166233314,-460.0,0.00017529,2]
[379151573,1755166233327,-1197.22,0.00017529,2]
[379151574,1755166233337,-460.0,0.00017529,2]
[379151576,1755166233347,-460.0,0.00017529,2]
[379151578,1755166233357,-460.0,0.00017529,2]
[379151580,1755166233367,-460.0,0.00017529,2]
[379151582,1755166233376,-2298.69,0.00017529,2]
[379151584,1755166233387,-1037.27,0.00017529,2]
[379151586,1755166233397,-3487.03,0.00017529,2]
[379151588,1755166233408,-4611.57,0.00017529,2]
[379151590,1755166233418,-467.0178547,0.00017529,2]
[379151592,1755166233428,-460.0,0.00017529,2]
[379151594,1755166233438,-1309.9,0.00017529,2]
[379151596,1755166233449,-460.0,0.00017529,2]
[379151598,1755166233458,-812.41,0.00017529,2]
[379151600,1755166233467,-734.78,0.00017529,2]
[379151602,1755166233477,-976.44,0.00017529,2]
[379151604,1755166233487,-598.76,0.00017529,2]
[379151606,1755166233498,-2640.65,0.00017529,2]
[379151608,1755166233508,-1216.82,0.00017529,2]
[379151610,1755166233517,-621.26,0.00017529,2]
[379151612,1755166233527,-629.84,0.00017529,2]
[379151615,1755166233538,-3131.77,0.00017529,2]
[379151618,1755166233549,-706.1,0.00017529,2]
[379151619,1755166233559,-460.0,0.00017529,2]
[379151621,1755166233568,-1501.64,0.00017529,2]
[379151623,1755166233578,-460.0,0.00017529,2]
[379151625,1755166233588,-471.35442001,0.00017529,2]
[379151627,1755166233598,-500.0,0.00017529,2]
[379151629,1755166233607,-500.0,0.00017529,2]
[379151631,1755166233617,-500.0,0.00017529,2]
[379151633,1755166233626,-229.79814153,0.00017529,2]
[379151635,1755166233636,-50000.0,0.00017529,2]
[379151636,1755166233646,-8730.29082885,0.0001753,2]
[379151638,1755166233656,-494.98500153,0.0001753,2]
[379151640,1755166233665,-397.23656085,0.0001753,2]
[379151642,1755166233674,-460.0,0.0001753,2]
[379151644,1755166233684,-365.45277753,0.0001753,2]
[379151646,1755166233693,-460.0,0.0001753,2]
[379151648,1755166233703,-460.0,0.0001753,2]
[379151650,1755166233712,-463.64445252,0.0001753,2]
[379151652,1755166233722,-460.0,0.0001753,2]
[379151654,1755166233731,-460.0,0.0001753,2]
[379151655,1755166233740,-460.0,0.0001753,2]
[379151657,1755166233750,-460.0,0.0001753,2]
[379151659,1755166233760,-460.0,0.0001753,2]
[379151661,1755166233770,-243.42877141,0.0001753,2]
[379151663,1755166233779,-460.0,0.0001753,2]
[379151665,1755166233789,-460.0,0.0001753,2]
[379151667,1755166233800,-460.0,0.0001753,2]
[379151669,1755166233809,-460.0,0.0001753,2]
[379151671,1755166233819,-460.0,0.0001753,2]
[379151673,1755166233828,-460.0,0.0001753,2]
[379151675,1755166233838,-591.82,0.0001753,2]
[379151676,1755166233848,-460.0,0.0001753,2]
[379151678,1755166233858,-460.0,0.0001753,2]
[379151680,1755166233868,-575.58,0.0001753,2]
[379151682,1755166233878,-460.0,0.0001753,2]
[379151684,1755166233887,-503.87274779,0.0001753,2]
[379151686,1755166233897,-460.0,0.0001753,2]
[379151687,1755166233906,-460.0,0.0001753,2]
[379151688,1755166233917,-460.0,0.0001753,2]
[379151689,1755166233927,-460.0,0.0001753,2]
[379151690,1755166233936,-460.0,0.0001753,2]
[379151691,1755166233947,-460.0,0.0001753,2]
[379151692,1755166233956,-251.00143846,0.0001753,2]
[379151693,1755166233968,-460.0,0.0001753,2]
[379151694,1755166233977,-460.0,0.0001753,2]
[379151695,1755166233988,-861.75,0.0001753,2]
[379151696,1755166233998,-460.0,0.0001753,2]
[379151697,1755166234008,-460.0,0.0001753,2]
[379151698,1755166234019,-460.0,0.0001753,2]
[379151699,1755166234029,-460.0,0.0001753,2]
[379151700,1755166234040,-621.45,0.0001753,2]
[379151701,1755166234050,-460.0,0.0001753,2]
[379151702,1755166234059,-460.0,0.0001753,2]
[379151703,1755166234069,-712.94,0.0001753,2]
[379151704,1755166234079,-460.0,0.0001753,2]
[379151705,1755166234088,-460.0,0.0001753,2]
[379151706,1755166234099,-460.0,0.0001753,2]
[379151707,1755166234109,-631.45,0.0001753,2]
[379151708,1755166234119,-460.0,0.0001753,2]
[379151709,1755166234129,-460.0,0.0001753,2]
[379151710,1755166234140,-1574.11,0.0001753,2]
[379151711,1755166234152,-460.0,0.0001753,2]
[379151712,1755166234162,-1005.82,0.0001753,2]
[379151713,1755166234173,-460.0,0.0001753,2]
[379151714,1755166234184,-460.0,0.0001753,2]
[379151715,1755166234194,-460.0,0.0001753,2]
[379151716,1755166234205,-460.0,0.0001753,2]
[379151717,1755166234214,-460.0,0.0001753,2]
[379151718,1755166234224,-460.0,0.00017531,2]
[379151719,1755166234234,-460.0,0.00017531,2]
[379151720,1755166234244,-460.0,0.00017531,2]
[379151721,1755166234254,-460.0,0.00017531,2]
[379151722,1755166234263,-460.0,0.00017531,2]
[379151723,1755166234272,-151.0,0.00017531,2]
[379151724,1755166234282,-460.0,0.00017531,2]
[379151725,1755166234292,-1307.63,0.00017531,2]
[379151726,1755166234301,-489.53,0.00017531,2]
[379151727,1755166234310,-716.41,0.00017531,2]
[379151728,1755166234321,-151.0,0.00017531,2]
[379151729,1755166234333,-13414.75,0.00017531,2]
[379151730,1755166234343,-14010.6,0.00017531,2]
[379151731,1755166234353,-3692.3,0.00017531,2]
[379151732,1755166234362,-151.0,0.00017531,2]
[379151733,1755166234373,-151.0,0.00017531,2]
[379151734,1755166234383,-1603.69,0.00017531,2]
[379151735,1755166234393,-151.0,0.00017531,2]
[379151736,1755166234404,-553.2,0.00017531,2]
[379151737,1755166234414,-500.0,0.00017531,2]
[379151738,1755166234424,-151.0,0.00017531,2]
[379151739,1755166234434,-151.0,0.00017531,2]
[379151740,1755166234444,-151.0,0.00017531,2]
[379151741,1755166234453,-151.0,0.00017531,2]
[379151742,1755166234462,-151.0,0.00017531,2]
[379151743,1755166234472,-500.0,0.00017531,2]
[379151744,1755166234481,-236.8236247,0.00017531,2]
[379151745,1755166234490,-500.0,0.00017531,2]
[379151746,1755166234499,-151.0,0.00017531,2]
[379151747,1755166234509,-151.0,0.00017531,2]
[379151748,1755166234519,-242.308056,0.00017531,2]
[379151749,1755166234529,-1994.21,0.00017531,2]
[379151750,1755166234538,-11068.69,0.00017531,2]
[379151751,1755166234547,-460.0,0.00017531,2]
[379151752,1755166234557,-151.0,0.00017531,2]
[379151753,1755166234566,-1665.99338923,0.00017532,2]
[379151754,1755166234575,-10378.27618748,0.00017533,2]
[379151755,1755166234588,-19104.2588756,0.00017533,2]
[379151767,1755166238699,-151.0,0.00017522,2]
[379151768,1755166238708,-151.0,0.00017522,2]
[379151769,1755166238718,-44.16352336,0.00017522,2]
[379151770,1755166238730,-106.83647664,0.00017522,2]
[379151771,1755166238740,-151.0,0.00017522,2]
[379151772,1755166238749,-151.0,0.00017522,2]
[379151773,1755166238759,-151.0,0.00017522,2]
[379151774,1755166238769,-461.25850553,0.00017528,2]
[379151775,1755166238778,-341.1674056,0.00017529,2]
[379151776,1755166238794,-118.8325944,0.00017529,2]
[379151777,1755166238803,-715.15,0.0001753,2]
[379151778,1755166238813,-2754.69658729,0.00017533,2]
[379151779,1755166238824,-3144.18313553,0.00017533,2]
[379151780,1755166238836,-3235.19996701,0.00017533,2]
[379151781,1755166238870,-1786.39763772,0.00017533,2]
[379151782,1755166238882,-217138.27198289,0.00017533,2]
[379151783,1755166238892,-500.0,0.00017545,2]
[379151784,1755166238901,-1665.99338923,0.00017583,2]
[379151785,1755166238911,-151.0,0.00017587,2]
[379151786,1755166238921,-151.0,0.00017587,2]
[379151787,1755166238931,-151.0,0.00017587,2]
[379151788,1755166238941,-151.0,0.00017587,2]
[379151789,1755166238951,-297.76,0.00017622,3]
[379151790,1755166238960,-893.29,0.00017622,3]
[379151791,1755166238970,-301.78,0.00017622,3]
[379151792,1755166238980,-151.0,0.00017622,2]
[379151793,1755166238990,-151.0,0.00017622,2]
[379151794,1755166239000,-151.0,0.00017622,2]
[379151795,1755166239011,-2326.32,0.00017623,3]
[379151796,1755166239021,-1191.02,0.00017623,3]
[379151797,1755166239031,-595.51,0.00017623,3]
[379151798,1755166239042,-2691.94828461,0.0001763,2]
[379151819,1755166240607,-607.091838,0.0001763,2]
[379151822,1755166240620,-460.0,0.0001763,2]
[379151826,1755166240656,-754.45986901,0.0001763,2]
[379151828,1755166240668,-504.97545973,0.0001763,2]
[379151831,1755166240679,-680.73721652,0.0001763,2]
[379151833,1755166240691,-2778.04629647,0.0001763,2]
[379151835,1755166240703,-5137.38306436,0.0001763,2]
[379151877,1755166241092,-4.5199816,0.0001763,2]
[379151879,1755166241102,-159.84147972,0.00017632,2]
[379151881,1755166241111,-54.73876857,0.00017632,2]
[379151883,1755166241123,-405.26123143,0.00017632,2]
[379151886,1755166241134,-460.0,0.00017632,2]
[379151888,1755166241146,-460.0,0.00017632,2]
[379151890,1755166241155,-460.0,0.00017632,2]
[379151892,1755166241164,-365.55304038,0.00017632,2]
[379152067,1755166243879,-214.61512769,0.00017429,2]
[379152068,1755166243890,-460.0,0.00017529,2]
[379152069,1755166243905,-94.44695962,0.00017632,2]
[379152070,1755166243915,-792.93,0.00017632,2]
[379152071,1755166243925,-460.0,0.00017632,2]
[379152072,1755166243935,-460.0,0.00017632,2]
[379152073,1755166243945,-460.0,0.00017632,2]
[379152074,1755166243954,-460.0,0.00017632,2]
[379152075,1755166243964,-460.0,0.00017632,2]
[379152076,1755166243974,-527.63707465,0.00017632,2]
[379152077,1755166243984,-461.02434656,0.00017632,2]
[379152078,1755166243995,-498.62,0.00017632,2]
[379152079,1755166244005,-460.0,0.00017632,2]
[379152080,1755166244015,-184.99243989,0.00017632,2]
[379152081,1755166244026,-460.0,0.00017632,2]
[379152082,1755166244038,-460.0,0.00017632,2]
[379152083,1755166244049,-460.0,0.00017632,2]
[379152084,1755166244059,-460.0,0.00017632,2]
[379152085,1755166244069,-460.0,0.00017632,2]
[379152086,1755166244078,-460.0,0.00017632,2]
[379152087,1755166244088,-460.0,0.00017632,2]
[379152088,1755166244098,-730.15,0.00017632,2]
[379152089,1755166244107,-460.0,0.00017632,2]
[379152090,1755166244117,-1506.31,0.00017632,2]
[379152091,1755166244126,-504.0,0.00017632,2]
[379152092,1755166244136,-1265.99527513,0.00017632,2]
[379152139,1755166247047,-452.29082512,0.00017528,2]
[379152140,1755166247059,-307.59917488,0.00017528,2]
[379152141,1755166247069,-460.0,0.00017529,2]
[379152142,1755166247078,-729.3,0.0001753,2]
[379152143,1755166247088,-2897.7,0.00017531,2]
[379152144,1755166247097,-1263.59472487,0.00017632,2]
[379152145,1755166247107,-1300.6,0.00017632,2]
[379152146,1755166247115,-460.0,0.00017632,2]
[379152147,1755166247125,-460.0,0.00017632,2]
[379152148,1755166247134,-460.0,0.00017632,2]
[379152149,1755166247146,-460.0,0.00017632,2]
[379152150,1755166247155,-460.0,0.00017632,2]
[379152151,1755166247164,-151.0,0.00017632,2]
[379152152,1755166247173,-151.0,0.00017632,2]
[379152153,1755166247182,-460.0,0.00017632,2]
[379152154,1755166247191,-460.0,0.00017632,2]
[379152155,1755166247201,-151.0,0.00017632,2]
[379152156,1755166247210,-151.0,0.00017632,2]
[379152157,1755166247219,-460.0,0.00017632,2]
[379152158,1755166247229,-908.24,0.00017632,2]
[379152159,1755166247238,-460.0,0.00017632,2]
[379152160,1755166247248,-461.34887643,0.00017632,2]
[379152161,1755166247258,-460.0,0.00017632,2]
[379152162,1755166247267,-460.0,0.00017632,2]
[379152163,1755166247277,-460.0,0.00017632,2]
[379152164,1755166247286,-460.0,0.00017632,2]
[379152165,1755166247296,-460.0,0.00017632,2]
[379152166,1755166247305,-1710.75,0.00017632,2]
[379152167,1755166247315,-460.0,0.00017632,2]
[379152168,1755166247326,-1158.66,0.00017632,2]
[379152169,1755166247338,-460.85991417,0.00017632,2]
[379152170,1755166247347,-763.52,0.00017632,2]
[379152171,1755166247356,-910.16,0.00017632,2]
[379152172,1755166247366,-1276.62,0.00017632,2]
[379152173,1755166247376,-460.0,0.00017632,2]
[379152174,1755166247385,-460.0,0.00017632,2]
[379152175,1755166247396,-460.0,0.00017632,2]
[379152176,1755166247406,-1057.76,0.00017632,2]
[379152177,1755166247416,-462.37533983,0.00017632,2]
[379152178,1755166247426,-460.0,0.00017632,2]
[379152179,1755166247435,-460.0,0.00017632,2]
[379152180,1755166247444,-460.0,0.00017632,2]
[379152181,1755166247453,-460.0,0.00017632,2]
[379152182,1755166247463,-475.43559239,0.00017632,2]
[379152183,1755166247472,-151.0,0.00017632,2]
[379152184,1755166247481,-460.0,0.00017632,2]
[379152185,1755166247490,-151.0,0.00017632,2]
[379152187,1755166247500,-460.0,0.00017632,2]
[379152189,1755166247510,-460.0,0.00017632,2]
[379152190,1755166247519,-460.0,0.00017632,2]
[379152191,1755166247528,-460.0,0.00017632,2]
[379152192,1755166247537,-460.0,0.00017632,2]
[379152193,1755166247547,-460.9486442,0.00017632,2]
[379152194,1755166247556,-460.0,0.00017632,2]
[379152195,1755166247566,-460.0,0.00017632,2]
[379152196,1755166247576,-460.0,0.00017632,2]
[379152197,1755166247585,-151.0,0.00017632,2]
[379152198,1755166247594,-52.42663323,0.00017632,2]
[379152201,1755166247759,-98.57336677,0.00017632,2]
[379152202,1755166247769,-912.52,0.00017632,2]
[379152203,1755166247778,-151.0,0.00017632,2]
[379152204,1755166247788,-151.0,0.00017632,2]
[379152205,1755166247797,-460.0,0.00017632,2]
[379152206,1755166247807,-460.0,0.00017632,2]
[379152207,1755166247817,-462.17576323,0.00017632,2]
[379152208,1755166247827,-549.89,0.00017632,2]
[379152209,1755166247837,-460.0,0.00017632,2]
[379152210,1755166247847,-460.0,0.00017632,2]
[379152211,1755166247857,-460.0,0.00017632,2]
[379152212,1755166247867,-776.42,0.00017632,2]
[379152213,1755166247876,-499.03,0.00017632,2]
[379152214,1755166247887,-463.68501559,0.00017632,2]
[379152215,1755166247898,-1591.45,0.00017632,2]
[379152216,1755166247908,-269.17125501,0.00017632,2]
[379152217,1755166247918,-373.49652542,0.00017632,2]
[379152218,1755166247927,-78.66040595,0.00017632,2]
[379152219,1755166247939,-381.33959405,0.00017632,2]
[379152220,1755166247949,-151.0,0.00017632,2]
[379152221,1755166247959,-151.0,0.00017632,2]
[379152222,1755166247968,-460.0,0.00017632,2]
[379152223,1755166247978,-461.3395453,0.00017632,2]
[379152224,1755166247988,-244.97841409,0.00017632,2]
[379152225,1755166248000,-215.02158591,0.00017632,2]
[379152226,1755166248009,-151.0,0.00017632,2]
[379152227,1755166248019,-151.0,0.00017632,2]
[379152228,1755166248029,-151.0,0.00017632,2]
[379152229,1755166248038,-233.61763173,0.00017632,2]
[379152230,1755166248051,-262.40236827,0.00017632,2]
[379152231,1755166248061,-42.09353828,0.00017632,2]
[379152232,1755166248084,-417.90646172,0.00017632,2]
[379152233,1755166248094,-60.11664417,0.00017632,2]
[379152234,1755166248106,-399.88335583,0.00017632,2]
[379152235,1755166248116,-460.0,0.00017632,2]
[379152236,1755166248126,-352.84011907,0.00017632,2]
[379152237,1755166248136,-460.0,0.00017632,2]
[379152238,1755166248147,-460.0,0.00017632,2]
[379152239,1755166248156,-1439.6,0.00017632,2]
[379152240,1755166248166,-517.89863952,0.00017632,2]
[379152241,1755166264645,659.715729,0.00013699,2]
[379152243,1755166337467,-300.0,0.00017428,2]
[379152244,1755166337488,-26497.0,0.00017429,2]
[379152245,1755166662727,-1200.0,0.00016497,2]
[379152246,1755166666940,156.774245,0.0002208,30]
[379152248,1755166977078,-1.6892866,0.00016497,2]
[379152249,1755166977112,-3034.23199965,0.00017228,2]
[379152250,1755166979056,810.076897,0.00016375,2]
[379152251,1755167023463,-300.0,0.0001732,2]
[379152252,1755167023494,-300.0,0.00017321,2]
[379152253,1755167023524,-300.0,0.00017321,2]
[379152254,1755167023555,-300.0,0.00017321,2]
[379152255,1755167023594,-300.0,0.00017321,2]
[379152256,1755167023624,-1200.0,0.00017321,2]
[379152257,1755167023655,-347.66013676,0.00017321,2]
[379152258,1755167023682,-460.0,0.00017321,2]
[379152259,1755167023710,-747.39,0.00017321,2]
[379152260,1755167023740,-460.0,0.00017321,2]
[379152261,1755167023768,-109.89972648,0.00017321,2]
[379152262,1755167023950,-350.10027352,0.00017321,2]
[379152263,1755167023978,-726.48,0.00017321,2]
[379152264,1755167024006,-999.71,0.00017321,2]
[379152265,1755167024035,-2695.49,0.00017321,2]
[379152266,1755167024064,-76.25631572,0.00017321,2]
[379152267,1755167024177,-303.92682152,0.00017321,2]
[379152268,1755167024204,-497.01,0.00017321,2]
[379152269,1755167024233,-643.48,0.00017321,2]
[379152270,1755167024261,-460.0,0.00017321,2]
[379152271,1755167024289,-460.0,0.00017321,2]
[379152272,1755167024317,-460.0,0.00017321,2]
[379152273,1755167024346,-631.85,0.00017321,2]
[379152274,1755167024485,-4456.92,0.00017321,2]
[379152275,1755167024697,-1086.16,0.00017321,2]
[379152276,1755167024724,-460.0,0.00017321,2]
[379152277,1755167024751,-699.73,0.00017321,2]
[379152278,1755167024779,-460.0,0.00017321,2]
[379152279,1755167024806,-460.0,0.00017321,2]
[379152280,1755167027161,543.58,0.00017321,2]
[379152281,1755167031321,2745.87,0.00017321,2]
[379152282,1755167031502,378.77,0.00017321,2]
[379152283,1755167031524,1098.45,0.00017321,2]
[379152285,1755167032894,8901.55,0.000173,2]
[379152286,1755167032915,10000.0,0.000173,2]
[379152287,1755167032936,10000.0,0.000173,2]
[379152288,1755167032957,10000.0,0.000173,2]
[379152289,1755167032978,10000.0,0.000173,2]
[379152290,1755167033000,10000.0,0.000173,2]
[379152291,1755167033022,10000.0,0.000173,2]
[379152292,1755167033042,10000.0,0.000173,2]
[379152293,1755167033064,1156.45,0.000173,2]
[379152294,1755167033547,460.0,0.00017321,2]
[379152295,1755167042974,300.0,0.0001732,2]
[379152296,1755167043184,2424.2,0.00017321,2]
[379152297,1755167043421,1016.33,0.00017321,2]
[379152298,1755167049019,1176.59,0.00017321,2]
[379152299,1755167053242,3466.43,0.00017321,2]
[379152300,1755167053265,1040.02,0.00017321,2]
[379152301,1755167058118,460.0,0.00017321,2]
[379152302,1755167062210,460.0,0.0001732,2]
[379152303,1755167063044,460.0,0.00017321,2]
[379152304,1755167075363,2325.24,0.00017321,2]
[379152305,1755167081602,460.0,0.00017321,2]
[379152306,1755167082866,696.21,0.0001732,2]
[379152307,1755167086217,3341.74,0.00017321,2]
[379152308,1755167098594,460.0,0.00017321,2]
[379152309,1755167099270,296.79,0.0001732,2]
[379152310,1755167099292,661.26,0.0001732,2]
[379152311,1755167102068,460.0,0.00017321,2]
[379152312,1755167102333,300.0,0.0001732,2]
[379152313,1755167102476,300.0,0.0001732,2]
[379152314,1755167102745,300.0,0.0001732,2]
[379152315,1755167103789,630.0,0.0001732,2]
[379152317,1755167115767,460.0,0.00017321,2]
[379152318,1755167117158,2583.17,0.0001732,2]
[379152319,1755167119939,1436.3,0.00017321,2]
[379152320,1755167122511,460.0,0.00017321,2]
[379152321,1755167124107,460.0,0.00017321,2]
[379152322,1755167132772,460.0,0.00017321,2]
[379152323,1755167139931,857.71,0.00017321,2]
[379152324,1755167149306,616.67,0.0001732,2]
[379152325,1755167155607,14.89,0.00017321,2]
[379152326,1755167155628,624.81,0.00017321,2]
[379152327,1755167162650,300.0,0.00017321,2]
[379152328,1755167166057,462.43664672,0.00017321,2]
[379152329,1755167170080,889.57,0.00017321,2]
[379152330,1755167172636,330.60084364,0.00017321,2]
[379152331,1755167175853,613.91,0.00017321,2]
[379152332,1755167176659,605.52,0.0001732,2]
[379152333,1755167185749,3088.61,0.00017321,2]
[379152334,1755167194566,845.12,0.00017321,2]
[379152335,1755167195495,460.0,0.0001732,2]
[379152336,1755167196481,460.0,0.00017321,2]
[379152337,1755167198695,460.0,0.00017321,2]
[379152338,1755167201687,461.65607098,0.00017321,2]
[379152340,1755167205993,397.76643866,0.00017321,2]
[379152341,1755167206018,278.91356134,0.00017321,2]
[379152342,1755167209124,702.4,0.00017321,2]
[379152343,1755167210870,460.0,0.00017321,2]
[379152344,1755167211254,2631.46,0.0001732,2]
[379152345,1755167213222,460.0,0.00017321,2]
[379152346,1755167213817,1526.39,0.00017321,2]
[379152347,1755167218449,460.0,0.00017321,2]
[379152348,1755167219593,460.0,0.00017321,2]
[379152349,1755167220713,2654.95299972,0.00017228,2]
[379152350,1755167222789,365.88343894,0.00017321,2]
[379152351,1755167222815,94.11656106,0.00017321,2]
[379152352,1755167222870,460.0,0.00017321,2]
[379152353,1755167227306,1127.57,0.0001732,2]
[379152354,1755167227645,1133.0,0.00017321,2]
[379152355,1755167230009,877.33,0.00017321,2]
[379152356,1755167233290,460.0,0.00017321,2]
[379152357,1755167236127,460.0,0.0001732,2]
[379152358,1755167236808,5312.12,0.0001732,2]
[379152359,1755167240794,75.86343894,0.0001732,2]
[379152360,1755167240818,384.13656106,0.0001732,2]
[379152361,1755167242067,460.0,0.00017321,2]
[379152362,1755167242986,173.32114895,0.00017321,2]
[379152363,1755167245308,624.43,0.00017321,2]
[379152364,1755167246420,460.0,0.0001732,2]
[379152365,1755167252844,2228.36,0.0001732,2]
[379152366,1755167254489,460.0,0.00017321,2]
[379152367,1755167257509,460.0,0.00017321,2]
[379152368,1755167257948,614.72,0.00017321,2]
[379152369,1755167263479,1686.27,0.00017321,2]
[379152370,1755167268996,2448.76228999,0.0001732,2]
[379152371,1755167269022,753.73771001,0.0001732,2]
[379152372,1755167272341,1033.02,0.00017321,2]
[379152373,1755167273351,520.94,0.0001732,2]
[379152374,1755167273442,460.0,0.00017321,2]
[379152375,1755167280401,460.0,0.00017321,2]
[379152376,1755167281730,460.0,0.0001732,2]
[379152377,1755167284326,300.0,0.00017321,2]
[379152378,1755167287805,275.30961422,0.00017321,2]
[379152380,1755167289749,973.99,0.0001732,2]
[379152381,1755167291521,1542.43,0.00017321,2]
[379152382,1755167297981,480.78812035,0.0001732,2]
[379152383,1755167298026,916.82,0.00017321,2]
[379152384,1755167298796,460.0,0.00017321,2]
[379152385,1755167299361,990.11,0.00017321,2]
[379152386,1755167301472,372.85455542,0.0001732,2]
[379152387,1755167301494,1003.60544458,0.0001732,2]
[379152388,1755167302249,460.0,0.00017321,2]
[379152389,1755167305950,1281.69,0.00017321,2]
[379152390,1755167306405,4318.68,0.0001732,2]
[379152391,1755167306488,500.0,0.00017321,2]
[379152392,1755167306727,334.43306053,0.00017321,2]
[379152393,1755167310195,460.0,0.00017321,2]
[379152394,1755167312017,460.0,0.00017321,2]
[379152396,1755167315841,2753.01493079,0.000212,30]
[379152397,1755167318773,636.12067556,0.00017321,2]
[379152398,1755167320602,545.47081933,0.00017321,2]
[379152399,1755167320626,121.72918067,0.00017321,2]
[379152400,1755167320798,821.97,0.0001732,2]
[379152401,1755167321163,460.0,0.00017321,2]
[379152402,1755167331299,918.13,0.00017321,2]
[379152403,1755167334665,3931.82039371,0.00017321,2]
[379152404,1755167335765,460.0,0.00017321,2]
[379152405,1755167342089,2475.54,0.00017321,2]
[379152406,1755167342798,810.81042562,0.00017321,2]
[379152407,1755167342824,468.94076856,0.00017321,2]
[379152408,1755167344965,588.33,0.0001732,2]
[379152409,1755167347107,460.0,0.00017321,2]
[379152410,1755167356172,300.0,0.00017321,2]
[379152411,1755167363278,460.0,0.00017321,2]
[379152412,1755167363892,845.12,0.0001732,2]
[379152413,1755167365858,460.0,0.00017321,2]
[379152414,1755167367668,460.0,0.00017321,2]
[379152415,1755167373938,203.41503126,0.00017321,2]
[379152416,1755167373970,648.48,0.0001732,2]
[379152417,1755167374093,497.4,0.00017321,2]
[379152418,1755167374617,704.52,0.00017321,2]
[379152419,1755167382581,3903.79420018,0.00017321,2]
[379152420,1755167382603,1096.20579982,0.00017321,2]
[379152421,1755167382632,1462.79,0.0001732,2]
[379152422,1755167382953,726.05,0.00017321,2]
[379152423,1755167385945,6714.95420018,0.00016553,2]
[379152424,1755167385967,10000.0,0.00016553,2]
[379152425,1755167385989,10000.0,0.00016553,2]
[379152426,1755167386010,82.26228282,0.00016553,2]
[379152427,1755167386041,908.15,0.00017321,2]
[379152428,1755167388281,590.97,0.00017321,2]
[379152429,1755167390428,460.0,0.0001732,2]
[379152430,1755167393536,460.0,0.00017321,2]
[379152431,1755167398981,613.05,0.0001732,2]
[379152433,1755167402755,300.0,0.00017321,2]
[379152434,1755167405568,300.0,0.00017321,2]
[379152435,1755167405740,460.0,0.0001732,2]
[379152436,1755167407089,460.0,0.00017321,2]
[379152437,1755167408981,460.0,0.00017321,2]
[379152438,1755167410220,460.0,0.00017321,2]